Cogmind - Beta 11.2 *** ADVENTURER MODE // 2023.01.04 @ 23:42:46 // Winter2022/Polymind Player: SuDmit Result: Destroyed by G-47 Trooper with Particle Gun Performance ------------- Evolutions (2) 1000 Regions Visited (5) 1000 Robots Destroyed (53) 265 Value Destroyed (1738) 1738 Prototype IDs (1) 20 Alien Tech Used (0) 0 Bonus (4406) 4406 TOTAL SCORE: 8069 Bonus ------- Polymind Skill 4228 High Alert Combat Kills 83 Follower Combat Kills 95 Cogmind --------- Core Integrity 0/550 Matter 0/0 Energy 100/100 System Corruption 0% Temperature Cool (9) Movement Walking (120) Location -8/Materials Parts ------- > --- POWER (1) -------- Light Angular Momentum Engine > --- PROPULSION (2) --- Carbon-fiber Leg Carbon-fiber Leg > --- UTILITY (1) ------ Advanced Heat Sink > --- WEAPON (1) ------- Heavy Laser > --- INVENTORY (1) ---- (None) Peak State ------------ > --- POWER ------------ Light Deuterium Engine > --- PROPULSION ------- Combat Airjet Combat Airjet > --- UTILITY ---------- Launcher Guidance Computer Improved Light Armor Plating Shock Absorption System > --- WEAPON ----------- Mini Grenade Launcher > --- INVENTORY -------- (None) [Rating: 26] Favorites ----------- Power Improved Ion Engine Engine Improved Ion Engine Power Core Light Nuclear Core Propulsion Light Treads Treads Light Treads Leg Aluminum Leg Wheel Compact Wheel Hover Unit Combat Airjet Flight Unit Flight Unit Utility Heat Sink Device Heat Sink Storage Small Storage Unit Processor Launcher Guidance Computer Protection Light Armor Plating Weapon Beam Rifle Energy Gun Beam Rifle Ballistic Gun Heavy Assault Rifle Launcher Mini Grenade Launcher Slashing Weapon Katana Build | -11 -10 -10 -9 -9 -8 ------- Run | Scr Mat Min Mat Min Mat Slots Evolved . | . . . . . . Power . | . . . . . . Propulsion . | . . . . . . Utility . | . . . . . . Weapon . | . . . . . . Parts Attached . | . . . . . . Power . | . . . . . . Engine . | . . . . . . Core . | . . . . . . Reactor . | . . . . . . Propulsion . | . . . . . . Treads . | . . . . . . Leg . | . . . . . . Wheel . | . . . . . . Hover . | . . . . . . Flight . | . . . . . . Utility . | . . . . . . Device . | . . . . . . Storage . | . . . . . . Processor . | . . . . . . Hackware . | . . . . . . Protection . | . . . . . . Artifact . | . . . . . . Weapon . | . . . . . . Energy Gun . | . . . . . . Energy Cannon . | . . . . . . Ballistic Gun . | . . . . . . Ballistic Cannon . | . . . . . . Launcher . | . . . . . . Special Weapon . | . . . . . . Impact Weapon . | . . . . . . Slashing Weapon . | . . . . . . Piercing Weapon . | . . . . . . Special Melee Weapon . | . . . . . . Unidentified Prototypes . | . . . . . . Parts Lost 14 | . 2 . 4 1 7 Power 3 | . 1 . 1 . 1 Propulsion 4 | . . . 1 . 3 Utility 5 | . 1 . 1 1 2 Weapon 2 | . . . 1 . 1 Highest Loss Streak 3 | . 2 . 2 1 3 To Critical Strikes . | . . . . . . Average Slot Usage (%) 95 | . 90 100 97 89 87 Engine 12 | . 5 20 12 13 9 Core 1 | . 11 . . . 4 Treads 16 | . . . 23 7 5 Leg 4 | . 23 . . . 20 Hover 3 | . 6 15 . 19 3 Flight 3 | . . 26 2 . . Device 19 | . 17 7 23 7 11 Processor 3 | . 6 15 . 9 6 Protection 8 | . . . 10 13 7 Energy Gun 9 | . 11 . 11 3 9 Ballistic Gun 9 | . . 13 12 3 2 Naked Turns 75 | . 49 . 1 . 25 Heaviest Build 18 | . 9 4 18 18 18 Greatest Support 40 | 3 32 12 40 40 40 Greatest Overweight (x) . | . . . . . . Average Overweight (x) . | . . . . . . Largest Inventory Capacity 10 | . 4 . 4 1 10 Average Capacity . | . 1 . . 1 1 Most Carried 10 | . 4 . . . 10 Average Carried . | . . . . . . Final Capacity 1 | . . . 1 1 1 Final Carried . | . . . . . . Class Distribution -------------------- 64% | Sentry 10% | Grunt 7% | Swarmer 5% | Demolisher 5% | Watcher Dominant Class ---------------- Grunt | -10/Materials Swarmer | -10/Mines Sentry | -9/Materials Demolisher | -9/Mines Grunt | -8/Materials Resources | -11 -10 -10 -9 -9 -8 ----------- Run | Scr Mat Min Mat Min Mat Matter Collected 251 | . . 13 129 77 32 Remotely . | . . . . . . Salvage Created 1514 | . 178 44 586 166 540 Parts 94 | . 16 1 48 9 20 Haulers Intercepted . | . . . . . . Recyclers Shooed . | . . . . . . Parts Field Recycled . | . . . . . . Retrieved Matter . | . . . . . . Parts Self-Destructed . | . . . . . . Prevented . | . . . . . . Kills | -11 -10 -10 -9 -9 -8 ------- Run | Scr Mat Min Mat Min Mat Combat Hostiles Destroyed 49 | . 7 1 24 6 11 Melee 6 | . . . . . 6 Guns 35 | . 7 1 22 . 5 AOE 8 | . . . 2 6 . Classes Destroyed 6 | . 1 . 3 . 2 Recycler 1 | . . . . . 1 Operator 1 | . . . . . 1 Watcher 2 | . . . 1 . 1 Swarmer 11 | . . . 8 . 3 Grunt 28 | . 7 1 10 4 6 Sentry 10 | . . . 6 2 2 Best Kill Streak 5 | . 5 1 4 4 5 Combat Bots Only 5 | . 5 1 4 4 3 Max Kills in Single Turn 2 | . 1 1 2 2 1 Gunslinging . | . . . . . . Exploded 2 | . . . 2 2 . Melee 1 | . . . . . 1 Uniques/NPCs Destroyed . | . . . . . . Combat | -11 -10 -10 -9 -9 -8 -------- Run | Scr Mat Min Mat Min Mat Damage Taken 3489 | . 415 53 976 302 1743 Core 1038 | . 124 47 243 67 557 Absorbed by Shields . | . . . . . . Redirected to Shielding 12 | . . . . . 12 Core Remaining (%) 51 | 100 . 31 . 22 . Volleys Fired 198 | . 38 11 74 19 56 Largest 2 | . 1 1 2 1 2 Hottest 79 | . 65 20 79 30 79 Shots Fired 255 | . 38 11 117 19 70 Gun 236 | . 38 11 117 . 70 Cannon . | . . . . . . Launcher 19 | . . . . 19 . Special . | . . . . . . Kinetic 93 | . . 11 62 . 20 Thermal 143 | . 38 . 55 . 50 Explosive 19 | . . . . 19 . Electromagnetic . | . . . . . . Robot Hit Streak 41 | . 6 8 35 41 17 Robot Miss Streak 2 | . 2 1 1 1 2 Penetration Max . | . . . . . . Secondary Targets 2 | . . . 2 . . Max Gunslinging Chain 1 | . . . 1 . . Shots Hit Robots 235 | . 28 8 105 17 77 Core Hits 93 | . 9 3 40 18 23 Critical Kills . | . . . . . . Critical Parts Destroyed . | . . . . . . Critical Strikes 12 | . 4 . 6 . 2 Burn 12 | . 4 . 6 . 2 Melee Attacks 15 | . . . . . 15 Impact . | . . . . . . Slashing 15 | . . . . . 15 Piercing . | . . . . . . Sneak Attacks 3 | . . . . . 3 Combat Hostiles 1 | . . . . . 1 Follow-up Attacks . | . . . . . . Damage Inflicted 4555 | . 458 60 1695 679 1663 Guns 2993 | . 447 60 1475 . 1011 Cannons . | . . . . . . Explosions 899 | . . . 220 679 . Melee 648 | . . . . . 648 Ramming 15 | . 11 . . . 4 Kinetic 1064 | . . 60 701 . 303 Thermal 1929 | . 447 . 774 . 708 Explosive 899 | . . . 220 679 . Electromagnetic . | . . . . . . Impact . | . . . . . . Slashing 648 | . . . . . 648 Piercing . | . . . . . . Highest Corruption 1 | . 1 1 . . . Average Corruption 1 | . 1 1 . . . Corruption Purged . | . . . . . . Corruption Blocked . | . . . . . . Effects 2 | . . 2 . . . Message Errors 1 | . . 1 . . . Heat Flow Errors 1 | . . 1 . . . Overload Shots . | . . . . . . Overflow Damage 130 | . 7 . . 6 117 Projectiles . | . . . . . . Explosions 6 | . . . . 6 . Melee 124 | . 7 . . . 117 Knockbacks . | . . . . . . Impact . | . . . . . . Kinetic . | . . . . . . Secondary . | . . . . . . Self-Inflicted Damage 15 | . . . . 13 2 Shots 2 | . . . . 2 . Rammed 1 | . . . . . 1 Targets Rammed 3 | . 2 . . . 1 Kicked 2 | . 2 . . . . Crushed . | . . . . . . Highest Temperature 529 | . 41 241 85 27 529 Average Temperature 66 | . 13 117 24 12 140 Received Heat Transfer 1914 | . 303 15 477 120 999 Effects 12 | . . . . . 12 Shutdowns 3 | . . . . . 3 Energy Bleed 1 | . . . . . 1 Interference 2 | . . . . . 2 Matter Decay 3 | . . . . . 3 Short Circuit 2 | . . . . . 2 Damage (core) 1 | . . . . . 1 Siege Activations . | . . . . . . Robots Corrupted . | . . . . . . Combat Hostiles . | . . . . . . Parts Fried . | . . . . . . Impact Corruptions 2 | . 2 . . . . Robots Melted . | . . . . . . Combat Hostiles . | . . . . . . Parts Melted 10 | . 1 . 4 . 5 Heat Transferred 5439 | . 1332 . 2331 . 1776 Parts Sabotaged . | . . . . . . Parts Stolen . | . . . . . . Parts Stripped . | . . . . . . Power Chain Reactions . | . . . . . . Missiles Intercepted . | . . . . . . Alert | -11 -10 -10 -9 -9 -8 ------- Run | Scr Mat Min Mat Min Mat Peak Influence 578 | . 322 314 578 409 484 Initial 134 | . . 78 103 51 134 Average 191 | . 161 154 189 97 308 Maximum Alert Level 2 | . 1 1 2 2 2 Low Security (%) 62 | 100 80 62 64 87 19 Level 1 29 | . 19 37 26 9 64 Level 2 7 | . . . 8 3 15 Level 3 . | . . . . . . Level 4 . | . . . . . . Level 5 . | . . . . . . High Security . | . . . . . . Max Security . | . . . . . . Squads Dispatched 5 | . 1 . 3 . 1 Investigation 4 | . 1 . 3 . . Extermination . | . . . . . . Reinforcement 1 | . . . . . 1 Assault . | . . . . . . Garrison . | . . . . . . Intercept . | . . . . . . Searches Triggered . | . . . . . . Construction Impeded . | . . . . . . Haulers Reinforced . | . . . . . . Active Scanning Responses . | . . . . . . Cargo Convoy Interrupts . | . . . . . . Stealth | -11 -10 -10 -9 -9 -8 --------- Run | Scr Mat Min Mat Min Mat Distress Signals 7 | . . 1 2 . 4 Communications Jammed . | . . . . . . Distress Signals . | . . . . . . Times Spotted 153 | . 25 18 40 8 62 Peak Tracking Total 8 | . 5 5 8 2 8 Tactical Retreats 8 | . 2 3 . . 3 Traps | -11 -10 -10 -9 -9 -8 ------- Run | Scr Mat Min Mat Min Mat Traps Triggered 1 | . 1 . . . . Indirectly . | . . . . . . Trap Hack Attempts . | . . . . . . Triggered . | . . . . . . Disarmed . | . . . . . . Reprogrammed . | . . . . . . Reused . | . . . . . . Traps Extracted . | . . . . . . Installed . | . . . . . . Triggered . | . . . . . . Machines | -11 -10 -10 -9 -9 -8 ---------- Run | Scr Mat Min Mat Min Mat Machines Disabled 4 | . . . 2 2 . Max in Single Turn 2 | . . . 2 2 . Garrison Access 1 | . . . . . 1 Machines Sabotaged . | . . . . . . Garrisons Compromised . | . . . . . . Overloaded Fab Kills . | . . . . . . Hacking | -11 -10 -10 -9 -9 -8 --------- Run | Scr Mat Min Mat Min Mat Machines Accessed 21 | . 8 . 12 . 1 Terminals 18 | . 8 . 10 . . Fabricators . | . . . . . . Repair Stations 1 | . . . 1 . . Recycling Units . | . . . . . . Scanalyzers 1 | . . . 1 . . Garrison Access 1 | . . . . . 1 Total Hacks 60 | . 24 . 30 . 6 Successful 36 | . 13 . 22 . 1 Failed 24 | . 11 . 8 . 5 Catastrophic . | . . . . . . Database Lockouts . | . . . . . . Manual 52 | . 24 . 28 . . Terminals 51 | . 24 . 27 . . Fabricators . | . . . . . . Repair Stations 2 | . . . 2 . . Recycling Units . | . . . . . . Scanalyzers 1 | . . . 1 . . Garrison Access 6 | . . . . . 6 Terminal Hacks 5 | . 3 . 2 . . Robot Analysis 1 | . 1 . . . . Branch Access Points 2 | . 1 . 1 . . Terminal Index 2 | . 1 . 1 . . Fabricator Hacks . | . . . . . . Repair Station Hacks 1 | . . . 1 . . Refit 1 | . . . 1 . . Recycling Unit Hacks . | . . . . . . Scanalyzer . | . . . . . . Garrison Access Hacks 1 | . . . . . 1 Seal Access 1 | . . . . . 1 Unauthorized Hacks 29 | . 10 . 19 . . Terminals 28 | . 10 . 18 . . Assimilate 1 | . . . 1 . . Botnet 15 | . 7 . 8 . . Detonate 4 | . 1 . 3 . . Disrupt 6 | . 1 . 5 . . Operators 2 | . 1 . 1 . . Fabricators . | . . . . . . Repair Stations . | . . . . . . Recycling Units . | . . . . . . Scanalyzers 1 | . . . 1 . . Extract 1 | . . . 1 . . Garrison Access . | . . . . . . Data Cores Recovered . | . . . . . . Used . | . . . . . . Hacking Detections 20 | . 8 . 11 . 1 Full Trace Events 7 | . 3 . 4 . . Feedback Events . | . . . . . . Feedback Blocked . | . . . . . . Robot Schematics Acquired . | . . . . . . Robots Built . | . . . . . . Authchips . | . . . . . . Time . | . . . . . . Total Robot Build Rating . | . . . . . . Part Schematics Acquired 2 | . . . 2 . . Parts Built . | . . . . . . Authchips . | . . . . . . Time . | . . . . . . Total Part Build Rating . | . . . . . . Parts Repaired . | . . . . . . Time . | . . . . . . Parts Recycled . | . . . . . . Recycled Matter . | . . . . . . Retrieved Matter . | . . . . . . Retrieved Components . | . . . . . . Parts Scanalyzed . | . . . . . . Part Schematics Acquired . | . . . . . . Parts Damaged . | . . . . . . Bothacking | -11 -10 -10 -9 -9 -8 ------------ Run | Scr Mat Min Mat Min Mat Used RIF Installer . | . . . . . . Robots Hacked 20 | . 4 1 6 1 8 Non-combat 5 | . 2 . 2 . 1 Combat 15 | . 2 1 4 1 7 Robot Hacks Applied 27 | . 5 1 6 1 14 find_recycling 3 | . 1 . 2 . . find_station 1 | . . . . . 1 map_route 1 | . 1 . . . . mark_security 1 | . 1 . . . . find_shortcuts 15 | . 2 1 4 1 7 find_garrison 6 | . . . . . 6 Relay Couplers Released . | . . . . . . Fabnet Peak Effective % . | . . . . . . Robots Rewired . | . . . . . . Allies Hacked . | . . . . . . Hacks Repelled . | . . . . . . Allies | -11 -10 -10 -9 -9 -8 -------- Run | Scr Mat Min Mat Min Mat Total Allies 3 | . . 3 . . . Largest Group 3 | . . 3 1 . . Highest-Rated Group 40 | . . 40 16 . . Highest-Rated Ally 16 | . . 16 16 . . Total Orders . | . . . . . . Ally Attacks 46 | . . 37 9 . . Total Damage 373 | . . 260 113 . . Kills 10 | . . 7 3 . . Allies Corrupted . | . . . . . . Allies Melted . | . . . . . . Intel | -11 -10 -10 -9 -9 -8 ------- Run | Scr Mat Min Mat Min Mat Robot Analysis Total 9 | . 4 . 1 1 3 Derelict Logs Recovered 3 | . . 2 . 1 . Drone Launches . | . . . . . . Drone Recoveries . | . . . . . . Exploration | -11 -10 -10 -9 -9 -8 ------------- Run | Scr Mat Min Mat Min Mat Turns Passed 4518 | 9 511 327 2898 272 501 Spaces Moved 2363 | 18 460 501 876 253 255 Core 116 | 18 81 . 3 . 14 Treads 632 | . . . 580 46 6 Legs 311 | . 170 . . . 141 Wheels 80 | . 65 . 5 . 10 Hover 673 | . 144 204 34 207 84 Flight 551 | . . 297 254 . . Fastest Speed 37 | 50 50 37 37 76 50 Average Speed 91 | 50 84 44 120 91 101 Slowest Speed 160 | 50 120 56 160 160 160 Overloaded Moves . | . . . . . . Propulsion Burnouts . | . . . . . . Robots Hopped 6 | . . . 5 . 1 Cave-ins Triggered . | . . . . . . Exploration Rate (%) 59 | 3 83 92 80 63 36 Regions Visited 5 Branch Regions 2 Pre-discovered Areas 2 | . . 2 . . . Known Exits Taken 2 | . 1 . 1 . . Unknown Exits Taken 3 | 1 . 1 . 1 . Scrap Searched 2 | . . 1 . 1 . Spaces Dug . | . . . . . . Terrain Destroyed 141 | . . . 22 119 . Melee . | . . . . . . Projectile . | . . . . . . AOE 141 | . . . 22 119 . Terrain Rammed . | . . . . . . Walls Destroyed . | . . . . . . Machines Disabled . | . . . . . . Actions | -11 -10 -10 -9 -9 -8 --------- Run | Scr Mat Min Mat Min Mat Total 4430 | 17 542 594 2598 274 405 Wait 1851 | . 33 83 1654 3 78 Move 2346 | 17 459 500 865 252 253 Hop 6 | . . . 5 . 1 Pick Up 5 | . 5 . . . . Fast Attach . | . . . . . . Attach . | . . . . . . Detach . | . . . . . . Swap . | . . . . . . Drop . | . . . . . . Fire 198 | . 38 11 74 19 56 Melee 15 | . . . . . 15 Ram 1 | . . . . . 1 Kick 2 | . 2 . . . . Crush . | . . . . . . Escape Stasis . | . . . . . . Rewire . | . . . . . . Trap . | . . . . . . Miscellaneous 6 | . 5 . . . 1 Route ------- -11/Scrapyard -10/Materials (discovered 4 exits: *Mat x2 / *Min x2) -10/Mines (discovered 2 exits: *Mat x2) -9/Materials (discovered 5 exits: *Mat x3 / *Min x2) -9/Mines (discovered 2 exits: *Mat / [*Zio]) -8/Materials (discovered 2 exits: [*Fac] / Sto) History --------- Turn | Location | Event 2 | -11/Scrapyard | Met Revision 17 4 | -11/Scrapyard | Discovered new exit (range 12) 10 | -11/Scrapyard | Entered Materials 109 | -10/Materials | Discovered new exit (range 16) 172 | -10/Materials | Identified exit to Mines 211 | -10/Materials | Discovered new exit (range 15) 425 | -10/Materials | Discovered new exit (range 30) 521 | -10/Materials | Entered Mines 640 | -10/Mines | Learned location of Storage (-8) 640 | -10/Mines | Discovered new exit (range 6) 677 | -10/Mines | Core integrity fell below 50% 689 | -10/Mines | Assisted by bots powering up and referring to "LRC-V3" 774 | -10/Mines | Discovered new exit (range 9) 848 | -10/Mines | Entered Materials 848 | -9/Materials | Accompanied by 1 ally 867 | -9/Materials | Discovered new exit (range 15) 912 | -9/Materials | Discovered new exit (range 16) 1769 | -9/Materials | Discovered new exit (range 11) 1878 | -9/Materials | Identified exit to Mines 1923 | -9/Materials | Discovered new exit (range 15) 2655 | -9/Materials | Discovered new exit (range 11) 3592 | -9/Materials | Core integrity fell below 50% 3746 | -9/Materials | Entered Mines 3775 | -9/Mines | Assembled infested the area 3840 | -9/Mines | Met 8R-AWN 3904 | -9/Mines | A Derelict revealed a hidden shortcut to a safe place 3953 | -9/Mines | Received a Rocket Launcher from a helpful Derelict 4001 | -9/Mines | Discovered new exit (range 12) 4018 | -9/Mines | Entered Materials 4019 | -8/Materials | Identified exit to Storage 4218 | -8/Materials | Lost 3 parts (1n2u) 4237 | -8/Materials | Discovered new exit (range 14) 4278 | -8/Materials | Core integrity fell below 50% 4358 | -8/Materials | Lost 3 parts (2n1w) 4371 | -8/Materials | Core integrity fell below 20% 4519 | -8/Materials | Destroyed by G-47 Trooper with Particle Gun Last Messages --------------- 04408_ O-16 Technician destroyed. 04410_ K-01 Serf collects debris. 04436_ Destroyed Lgt. Ion Engine. 04438_ S-10 Pest destroyed. 04441_ Acquired 3 Protomatter. 04443_ S-10 Pest destroyed. 04471_ W-25 Informer destroyed. 04481_ W-25 Informer distress signal alerts nearby ally. 04482_ K-01 Serf cleans the Garrison Access. 04489_ Connecting with Garrison Access... 04489_ Current location identified: Materials >>Seal Access door sealed. 04493_ Released control of L-31 Rogue. 04493_ Slammed into G-50 Soldier. 04494_ Took control of G-50 Soldier. 04494_ Extracted analysis data for G-50 Soldier. 04496_ W-25 Informer distress signal alerts nearby ally. 04499_ T-07 Excavator is excavating. 04518_ W-25 Informer distress signal alerts nearby ally. Map ----- +----------------------------------------------------+ | ?????????????????????????????????????????????????? | | ?????????????????????????????????????????????????? | | ?????????????????????????????????????????????????? | | ?????????????????????????????????????????????????? | | ?????????????????????????????????????????????????? | | ?????????????????????????????????????????????????? | | ?????????????????????????????????????????????????? | | ?????????????????????????????????????????????????? | | ?????????????????????????????????????????????????? | | ?????????????????????????????????????????????????? | | ?????????????????????????????????????????????????? | | ?????????????????????????????????????????????????? | | ?????????????????????????????????????????????????? | | ?????????????????????????????????????????????????? | | ?????????????????????????????????????????????????? | | ?????????????????????????????????????????????????? | | ?????????????????????????????????????????????????? | | ???????????????????????? ????? ?????????????????? | | ????????????????????####+###?? ????????????????? | | ????????????????????#* w #? #????????????????? | | ????????????????????# """ #? #????????????????? | | ????????????????????+! """k#? #????????????????? | | ????????????????????# """ #? #????????????????? | | ????????????????????? #? #????????????????? | | ??????????????????????? #? #????????????????? | | ????????????????????????#g#?? #????????????????? | | ???????????######+####### ### #????????????????? | | ?????????? l #????????????????? | | ????>????? #????????????????? | | ?????????? #????????????????? | | ???????????#### ######## ###########??????? | | ??????????????#??????????# ?????? | | ?????????????????????????# ?????? | | ?????????????????????????# ?????? | | ?????????????????????????# #############???????? | | ?????????????????????????# g#???????????????????? | | ?????????????????????????# #???????????????????? | | ######???????????? ### ### ga####################? | | ! #???????? ? | | #????????? T | | "" #???????? ? | | "Y #???????? ###+########### #####????? | | "" [ #?????????##?????????########/## #????????? | | #????????????????????# # #????????? | | ######????????????????????# "" # ########## | | ??????#???????????????????# G" # | | ??????# ??????????????????# "" + | | ??????# ??#####??????????# ]/ # #?? | | ??######+#########????????# ]/ # ##### ##?? | | ??? # ##???????# / # #????????? | +----------------------------------------------------+ Best States ------------- Heat Dissipation 42 Energy Generation 24 Energy Capacity 215 Matter Stores 150 Matter Capacity 150 Sight Range 18 Robot Scan Range 14 Terrain Scan Density 10 Armor Coverage 150 Resistance: KI 20 Resistance: TH 20 Resistance: EX 70 Resistance: EM 20 Resistance: I 45 Resistance: S 45 Resistance: P 45 Core Shielding 20 Evasion (%) 62 Melee Accuracy 5 Launcher Accuracy 20 Recoil Reduction 2 Offensive Hacking 10 Item Schematics ----------------- Huge Storage Unit | -9/Materials | Extracted Imp. EM Shotgun | -9/Materials | Extracted Robot Schematics ------------------ None Fabricated ------------ Nothing Alien Tech Used ----------------- None Achievements -------------- None Challenges ------------ None Polymind | -11 -10 -10 -9 -9 -8 ---------- Run | Scr Mat Min Mat Min Mat Hosts 20 | . 4 1 6 1 8 Combat Hostiles 15 | . 2 1 4 1 7 Allies . | . . . . . . Unique Host Classes 8 | . 3 1 1 1 2 Average Host Suspicion 71 | . 98 75 63 75 88 Unsuspicious Activity 1689 | . 40 . 1616 . 33 Returns to Shadow 3 | . . . 3 . . Fuzzy Dispatches . | . . . . . . Protomatter Created 455 | . 64 5 142 166 78 Used 413 | . 77 6 68 40 222 Decayed 72 | . . . 29 43 . Highest Spend 45 | . 30 6 23 40 45 Top 5 Hosts by Kills: Y-45 Defender (-9/Materials: 18) D-53 Grenadier (-9/Mines: 6) L-31 Rogue (-8/Materials: 6) G-47 Trooper (-10/Materials: 5) S-10 Pest (-9/Materials: 5) Game ------ Seed 1 Manual? 1 Play Time 00:38:19 Cumulative 141.5 hours Start 2023.01.04 @ 23:05:09 End 2023.01.04 @ 23:42:46 Sessions 1 Manual Loads 0 Difficulty Adventurer Special Mode Winter2022/Polymind Game No. 32 Rogue 0 Adventurer 32 Explorer 0 Win Type - Total 1 Types 1/0/0/0/0/0/0/0/0 Lore% 58 Gallery% 66 Achievement% 55 Wizard Run 0 Options --------- ASCII 0 Keyboard 0 Movement Mouse Keybinds 0 Fullscreen 1 Font 18/SmallcapsGlow Map View 76x50 Tactical HUD 1 Map Filters NONE Filters NONE Steam 1 RUN: 62773514-39bc-4f90-acc7-7731613c4ace